fUSD/lending_fUSD_20240728
["ID","MTS","AMOUNT","RATE_DAILY","PERIOD"]
[333472563,1722167350499,-243.64,0.00010999,2]
[333472564,1722167350531,-500.0,0.00010999,2]
[333472565,1722167350558,-500.0,0.00010999,2]
[333472566,1722167350585,-500.0,0.00010999,2]
[333472567,1722167350612,-500.0,0.00010999,2]
[333472568,1722167350640,-500.0,0.00010999,2]
[333472569,1722167350666,-588.57622858,0.00010999,2]
[333472570,1722167350694,-500.0,0.00010999,2]
[333472571,1722167350723,-500.0,0.00010999,2]
[333472572,1722167350751,-500.0,0.00010999,2]
[333472573,1722167350778,-180.47,0.00010999,2]
[333472574,1722167350804,-500.0,0.00010999,2]
[333472575,1722167350831,-500.0,0.00010999,2]
[333472576,1722167350859,-500.0,0.00010999,2]
[333472577,1722167350888,-466.98831512,0.00010999,2]
[333472578,1722167350919,-500.0,0.00010999,2]
[333472579,1722167350948,-500.0,0.00010999,2]
[333472580,1722167351113,-500.0,0.00010999,2]
[333472581,1722167351144,-500.0,0.00010999,2]
[333472582,1722167351172,-500.0,0.00010999,2]
[333472583,1722167351201,-500.0,0.00010999,2]
[333472584,1722167351227,-500.0,0.00010999,2]
[333472585,1722167351252,-500.0,0.00010999,2]
[333472586,1722167351278,-500.0,0.00010999,2]
[333472587,1722167351305,-500.0,0.00010999,2]
[333472588,1722167351332,-500.0,0.00010999,2]
[333472589,1722167351361,-500.0,0.00010999,2]
[333472590,1722167351387,-500.0,0.00010999,2]
[333472591,1722167351413,-500.0,0.00010999,2]
[333472592,1722167351441,-500.0,0.00010999,2]
[333472593,1722167351470,-500.0,0.00010999,2]
[333472594,1722167351498,-500.0,0.00010999,2]
[333472595,1722167351526,-500.0,0.00010999,2]
[333472596,1722167351552,-500.0,0.00010999,2]
[333472597,1722167351578,-500.0,0.00010999,2]
[333472598,1722167351604,-500.0,0.00010999,2]
[333472599,1722167351632,-500.0,0.00010999,2]
[333472600,1722167351660,-500.0,0.00010999,2]
[333472601,1722167351686,-500.0,0.00010999,2]
[333472602,1722167351713,-500.0,0.00010999,2]
[333472603,1722167351740,-500.0,0.00010999,2]
[333472604,1722167351766,-500.0,0.00010999,2]
[333472605,1722167351792,-500.0,0.00010999,2]
[333472606,1722167351819,-500.0,0.00010999,2]
[333472607,1722167351846,-500.0,0.00010999,2]
[333472608,1722167351874,-500.0,0.00010999,2]
[333472609,1722167351904,-500.0,0.00010999,2]
[333472610,1722167351932,-500.0,0.00010999,2]
[333472611,1722167351965,-500.0,0.00010999,2]
[333472612,1722167351993,-500.0,0.00010999,2]
[333472613,1722167352022,-500.0,0.00010999,2]
[333472614,1722167352050,-500.0,0.00010999,2]
[333472615,1722167352079,-212.64,0.00010999,2]
[333472616,1722167352105,-500.0,0.00010999,2]
[333472617,1722167352131,-500.0,0.00010999,2]
[333472618,1722167352158,-500.0,0.00010999,2]
[333472619,1722167352184,-500.0,0.00010999,2]
[333472620,1722167352212,-463.28932705,0.00010999,2]
[333472621,1722167352243,-500.0,0.00010999,2]
[333472622,1722167352272,-500.0,0.00010999,2]
[333472623,1722167352300,-500.0,0.00010999,2]
[333472624,1722167352327,-278.32,0.00010999,2]
[333472625,1722167352354,-335.4681348,0.00010999,2]
[333472626,1722167352382,-500.0,0.00010999,2]
[333472627,1722167352409,-500.0,0.00010999,2]
[333472628,1722167352437,-500.0,0.00010999,2]
[333472629,1722167352467,-500.0,0.00010999,2]
[333472630,1722167352494,-500.0,0.00010999,2]
[333472631,1722167352524,-511.34,0.00010999,2]
[333472632,1722167352551,-500.0,0.00010999,2]
[333472633,1722167352578,-500.0,0.00010999,2]
[333472634,1722167352604,-500.0,0.00010999,2]
[333472635,1722167352631,-210.05122625,0.00010999,2]
[333472636,1722167352658,-500.0,0.00010999,2]
[333472637,1722167352685,-500.0,0.00010999,2]
[333472638,1722167352712,-514.7126613,0.00010999,2]
[333472639,1722167352738,-500.0,0.00010999,2]
[333472640,1722167352765,-500.0,0.00010999,2]
[333472641,1722167352792,-500.0,0.00010999,2]
[333472642,1722167352820,-500.0,0.00010999,2]
[333472643,1722167352848,-500.0,0.00010999,2]
[333472644,1722167352879,-500.0,0.00010999,2]
[333472645,1722167352904,-500.0,0.00010999,2]
[333472646,1722167352931,-500.0,0.00010999,2]
[333472647,1722167352958,-500.0,0.00010999,2]
[333472648,1722167352986,-500.0,0.00010999,2]
[333472649,1722167353012,-500.0,0.00010999,2]
[333472650,1722167353168,-500.0,0.00010999,2]
[333472651,1722167353202,-500.0,0.00010999,2]
[333472652,1722167353230,-500.0,0.00010999,2]
[333472653,1722167353258,-500.0,0.00010999,2]
[333472654,1722167353284,-500.0,0.00010999,2]
[333472655,1722167353312,-533.0595,0.00010999,2]
[333472656,1722167353339,-500.0,0.00010999,2]
[333472657,1722167353365,-500.0,0.00010999,2]
[333472658,1722167353390,-500.0,0.00010999,2]
[333472659,1722167353416,-219.46,0.00010999,2]
[333472660,1722167353444,-229.11573921,0.00010999,2]
[333472661,1722167353471,-500.0,0.00010999,2]
[333472662,1722167353497,-500.0,0.00010999,2]
[333472663,1722167353524,-520.93045089,0.00010999,2]
[333472664,1722167353549,-500.0,0.00010999,2]
[333472665,1722167353575,-500.0,0.00010999,2]
[333472666,1722167353602,-254.31387548,0.00010999,2]
[333472667,1722167353628,-500.0,0.00010999,2]
[333472668,1722167353654,-500.0,0.00010999,2]
[333472669,1722167353679,-500.0,0.00010999,2]
[333472670,1722167353709,-500.0,0.00010999,2]
[333472671,1722167353734,-500.0,0.00010999,2]
[333472672,1722167353761,-500.0,0.00010999,2]
[333472673,1722167353786,-507.42744906,0.00010999,2]
[333472674,1722167353813,-498.29494946,0.00010999,2]
[333472675,1722167353840,-746.87,0.00010999,2]
[333472676,1722167353865,-746.87,0.00010999,2]
[333472677,1722167353894,-746.87,0.00010999,2]
[333472678,1722167353921,-746.87,0.00010999,2]
[333472679,1722167353951,-746.87,0.00010999,2]
[333472680,1722167353979,-746.87,0.00010999,2]
[333472681,1722167354004,-746.87,0.00010999,2]
[333472682,1722167354031,-746.87,0.00010999,2]
[333472683,1722167354057,-746.87,0.00010999,2]
[333472684,1722167354082,-746.87,0.00010999,2]
[333472685,1722167354107,-746.87,0.00010999,2]
[333472686,1722167354133,-746.87,0.00010999,2]
[333472687,1722167354159,-746.87,0.00010999,2]
[333472688,1722167354186,-746.87,0.00010999,2]
[333472689,1722167354213,-746.87,0.00010999,2]
[333472690,1722167354238,-746.87,0.00010999,2]
[333472691,1722167354264,-746.87,0.00010999,2]
[333472692,1722167354290,-746.87,0.00010999,2]
[333472693,1722167354316,-746.87,0.00010999,2]
[333472694,1722167354343,-746.87,0.00010999,2]
[333472695,1722167354369,-746.87,0.00010999,2]
[333472696,1722167354395,-746.96776525,0.00010999,2]
[333472697,1722167354424,-292130.20300793,0.00011,2]
[333472698,1722167354450,-2658.03598614,0.00011,2]
[333472699,1722167354476,-83883.00882123,0.00011,2]
[333472714,1722167432330,-431.89,8.511e-05,2]
[333472715,1722167432340,-1781.39577909,0.000105,2]
[333472716,1722167432350,-202.71422091,0.00010775,2]
[333472717,1722167432361,-229.17577909,0.00010775,2]
[333472718,1722167432371,-254.84919617,0.0001095,2]
[333472719,1722167432381,-287.3,0.00010959,2]
[333472720,1722167432390,-239.41,0.00010959,2]
[333472721,1722167432400,-199.51,0.00010959,2]
[333472722,1722167432411,-166.26,0.00010959,2]
[333472723,1722167432420,-166.26,0.00010959,2]
[333472724,1722167432429,-665.06,0.00010959,2]
[333472725,1722167432439,-300.0,0.00010994,2]
[333472726,1722167432448,-542.06502474,0.00010995,2]
[333472727,1722167432478,-494.53678606,0.00010995,2]
[333472728,1722167432487,-789.81906525,0.00010995,2]
[333472729,1722167432499,-726.72999162,0.00010995,2]
[333472730,1722167432515,-2194.55656055,0.00010995,2]
[333472731,1722167432526,-2000.0,0.00010995,2]
[333472732,1722167432538,-1781.09585828,0.00010995,2]
[333472733,1722167432548,-304.7115359,0.00010995,2]
[333472734,1722167432557,-500.0,0.00010998,2]
[333472735,1722167432567,-500.0,0.00010999,2]
[333472736,1722167432576,-500.0,0.00010999,2]
[333472737,1722167432586,-500.0,0.00010999,2]
[333472738,1722167432596,-362.67454776,0.00010999,2]
[333472739,1722167432605,-2000.0,0.00010999,2]
[333472740,1722167432615,-762.51805806,0.00010999,2]
[333472741,1722167432627,-251.35461498,0.00010999,2]
[333472742,1722167432642,-986.12732696,0.00010999,2]
[333472743,1722167432652,-14025.01343304,0.00011,2]
[333472744,1722167432663,-506.58096069,0.00011,2]
[333472745,1722167432675,-781.03258899,0.00011,2]
[333472746,1722167432686,-68075.42456168,0.00011,2]
[333472747,1722167432698,-3348.64538502,0.00011,2]
[333472761,1722167438409,-264.43385958,0.00010999,2]
[333472772,1722167438516,-599.17001685,0.00010999,2]
[333472774,1722167438528,-1136.39612357,0.00010999,2]
[333472775,1722167438537,-1331.6873678,0.00011,2]
[333472776,1722167438675,-6284.7374,0.00011,2]
[333472777,1722167438686,-603.49227331,0.00011,2]
[333472815,1722167441086,-5456.6979958,0.00010995,2]
[333472816,1722167441096,-44085.86459484,0.00011,2]
[333472817,1722167441108,-666.786,0.00011,2]
[333472818,1722167441125,-25122.81362145,0.00011,2]
[333472819,1722167441136,-63200.28459022,0.00011,2]
[333472820,1722167441159,-231.20887547,0.00011,2]
[333472821,1722167441185,-1963.44,0.00011,2]
[333472826,1722167443305,-541.89266789,0.00011,2]
[333472827,1722167443317,-3465.7968536,0.00011,2]
[333472828,1722167443363,-730.07140233,0.00011,2]
[333472829,1722167443375,-652.62529538,0.00011,2]
[333472830,1722167443419,-707.0740541,0.00011,2]
[333472831,1722167443473,-1250.74835245,0.00011,2]
[333472832,1722167443530,-120226.23414386,0.00011,2]
[333472833,1722167443539,-221933.76585614,0.00011,2]
[333472834,1722167443550,-8479.63585047,0.00011,2]
[333472835,1722167443582,-657.39,0.00011,2]
[333472836,1722167443637,-880.36175698,0.00011,2]
[333472837,1722167443651,-3606.14856082,0.00011,2]
[333472838,1722167443664,-628.210864,0.00011,2]
[333472841,1722167446374,-2000.0,0.00010999,2]
[333472842,1722167446384,-1694.94917077,0.00011,2]
[333472843,1722167446427,-545.218,0.00011,2]
[333472844,1722167446437,-302.28,0.00011,2]
[333472845,1722167446448,-2604.7579682,0.00011,2]
[333472846,1722167446459,-114965.60812519,0.00011,2]
[333472847,1722167446481,-5362.43495099,0.00011,2]
[333472848,1722167446537,-734.01641473,0.00011,2]
[333472850,1722167450029,-0.76820838,0.00011,2]
[333472851,1722167450041,-724.12012856,0.00011,2]
[333472852,1722167450053,-943.31862009,0.00011,2]
[333472853,1722167450065,-1283.8450912,0.00011,2]
[333472854,1722167450079,-6952.59621588,0.00011,2]
[333472856,1722168055823,-399.16,8.271e-05,2]
[333472857,1722168055855,-500.0,9.919e-05,2]
[333472858,1722168055887,-289.9,9.962e-05,2]
[333472859,1722168055920,-1250.0,0.0001,2]
[333472860,1722168055951,-150.0,0.00010027,2]
[333472861,1722168055984,-200.0,0.00010033,2]
[333472862,1722168056017,-250.0,0.0001007,2]
[333472863,1722168056049,-300.0,0.00010187,2]
[333472864,1722168056081,-300.0,0.00010187,2]
[333472865,1722168056112,-23900.0,0.00010188,2]
[333472866,1722168056142,-360.0,0.00010241,2]
[333472867,1722168056171,-250.0,0.00010246,2]
[333472868,1722168056201,-819.28,0.00010326,2]
[333472869,1722168056231,-1511.31301283,0.00010415,2]
[333472870,1722168056261,-399.16,0.00010535,2]
[333472871,1722168056290,-1173.51,0.00010535,2]
[333472872,1722168056611,-189.3426765,0.0001078,2]
[333472873,1722168056638,-2257.0,0.0001089,2]
[333472874,1722168056657,-399.16,0.000109,2]
[333472875,1722168056673,-500.0,0.000109,2]
[333472876,1722168056684,-289.9,0.000109,2]
[333472877,1722168056699,-1250.0,0.000109,2]
[333472878,1722168056715,-150.0,0.000109,2]
[333472879,1722168056727,-200.0,0.000109,2]
[333472880,1722168056738,-250.0,0.000109,2]
[333472881,1722168056753,-300.0,0.000109,2]
[333472882,1722168056764,-300.0,0.000109,2]
[333472883,1722168056777,-16981.07716769,0.000109,2]
[333472884,1722168056786,-500.0,0.00010911,2]
[333472885,1722168056796,-500.0,0.00010912,2]
[333472886,1722168056806,-4700.99006148,0.00010935,2]
[333472887,1722168056816,-150.99,0.00010935,2]
[333472888,1722168056825,-200.0,0.00010959,2]
[333472889,1722168056834,-486.38,0.00010959,2]
[333472890,1722168056843,-380.56277083,0.00010996,2]
[333472891,1722168056855,-128.15722917,0.00010996,2]
[333472892,1722168056864,-231.84277083,0.00010996,2]
[333472893,1722168056875,-88.97222917,0.00010996,2]
[333472894,1722168056884,-161.02777083,0.00010996,2]
[333472895,1722168056896,-819.28,0.00010996,2]
[333472896,1722168056907,-1441.69222917,0.00010996,2]
[333472897,1722168056917,-69.62078366,0.00010996,2]
[333472898,1722168056928,-80.37921634,0.00010996,2]
[333472899,1722168056938,-318.78078366,0.00010996,2]
[333472900,1722168056951,-104.21921634,0.00010996,2]
[333472901,1722168056960,-150.0,0.00010996,2]
[333472902,1722168056969,-166.74681867,0.00010998,2]
[333472903,1722168056978,-521.82541979,0.00010998,2]
[333472904,1722168056988,-179.92927884,0.00010998,2]
[333472905,1722168056997,-50.78926636,0.00010998,2]
[333472906,1722168057014,-99.21073364,0.00010998,2]
[333472907,1722168057027,-90.13194286,0.00010999,2]
[333472908,1722168057038,-1909.86805714,0.00010999,2]
[333472909,1722168057047,-347.13194286,0.00010999,2]
[333472910,1722168057058,-1652.86805714,0.00010999,2]
[333472911,1722168057067,-2000.0,0.00010999,2]
[333472912,1722168057076,-2000.0,0.00010999,2]
[333472913,1722168057085,-2000.0,0.00010999,2]
[333472914,1722168057095,-500.0,0.00010999,2]
[333472915,1722168057104,-500.0,0.00010999,2]
[333472916,1722168057112,-349.8005642,0.00010999,2]
[333472917,1722168366831,5323.39069777,0.0002,90]
[333473221,1722168631490,-359.24,8.423e-05,2]
[333473222,1722168631500,-1868.39,0.00010257,2]
[333473223,1722168631509,-712.0,0.00010345,2]
[333473224,1722168631519,-250.0,0.00010351,2]
[333473225,1722168631528,-256.59,0.00010409,2]
[333473226,1722168631537,-359.24,0.00010687,2]
[333473227,1722168631546,-250.0,0.00010959,2]
[333473228,1722168631556,-304.0,0.0001099,2]
[333473229,1722168631565,-192.881,0.00010996,2]
[333473230,1722168631576,-300.0,0.00010998,2]
[333473231,1722168631586,-150.1994358,0.00010999,2]
[333473232,1722168631597,-269.43973946,0.00010999,2]
[333473233,1722168631611,-500.0,0.00010999,2]
[333473234,1722168631620,-557.8249016,0.00010999,2]
[333473235,1722168631630,-500.0,0.00010999,2]
[333473236,1722168631639,-500.0,0.00010999,2]
[333473237,1722168631651,-500.0,0.00010999,2]
[333473238,1722168631661,-500.0,0.00010999,2]
[333473239,1722168631672,-500.0,0.00010999,2]
[333473240,1722168631684,-500.0,0.00010999,2]
[333473241,1722168631694,-85.676556,0.00010999,2]
[333473242,1722168631707,-210.45571126,0.00010999,2]
[333473243,1722168631716,-500.0,0.00010999,2]
[333473244,1722168631726,-500.0,0.00010999,2]
[333473245,1722168631737,-252.48,0.00010999,2]
[333473246,1722168631747,-289.81038929,0.00010999,2]
[333473247,1722168631757,-330.56109154,0.00010999,2]
[333473248,1722168631768,-169.43890846,0.00010999,2]
[333473249,1722168631777,-185.97943733,0.00010999,2]
[333473250,1722168631788,-279.47268139,0.00010999,2]
[333473251,1722168631799,-1485.82766007,0.00010999,2]
[333473252,1722168631810,-524.05483993,0.00010999,2]
[333473253,1722168631820,-478.85529244,0.00010999,2]
[333473254,1722168631830,-500.0,0.00010999,2]
[333473255,1722168631839,-500.0,0.00010999,2]
[333473256,1722168631849,-500.0,0.00010999,2]
[333473257,1722168631858,-500.0,0.00010999,2]
[333473258,1722168631868,-500.0,0.00010999,2]
[333473260,1722168631879,-500.0,0.00010999,2]
[333473262,1722168631888,-297.08986763,0.00010999,2]
[333473264,1722168631900,-202.91013237,0.00010999,2]
[333473266,1722168631909,-215.99131738,0.00010999,2]
[333473268,1722168631919,-500.0,0.00010999,2]
[333473270,1722168631928,-231.25609714,0.00010999,2]
[333473271,1722168631937,-11824.0,0.00011,2]
[333473273,1722168631946,-39474.29568441,0.00011,2]
[333473275,1722168631958,-3493.79031103,0.00011,2]
[333473277,1722168631969,-2300.0,0.00011,2]
[333473279,1722168631979,-304101.98433843,0.00011,2]
[333473281,1722168631991,-1171.32115809,0.00011,2]
[333473284,1722168632003,-500.0,0.00011,2]
[333473286,1722168632014,-761.27446212,0.00011,2]
[333473290,1722168632046,-1400.0,0.00011,2]
[333473292,1722168632060,-882.47551129,0.00011,2]
[333473430,1722168637534,-19074.73857867,0.00011,2]
[333473431,1722168637588,-1202.01693341,0.00011,2]
[333473432,1722168637642,-24243.7863439,0.00011,2]
[333473433,1722168637701,-300.0,0.00011,2]
[333473434,1722168637754,-275.46772006,0.00011,2]
[333473435,1722168637767,-859.86649006,0.00011,2]
[333473436,1722168637779,-421.78588728,0.00011,2]
[333473437,1722168637806,-82502.97612161,0.00011,2]
[333473438,1722168637817,-11129.9312,0.00011,2]
[333473440,1722168639626,-998.486475,0.00011,2]
[333473441,1722168639638,-2925.98626232,0.00011,2]
[333473442,1722168639651,-2099.15609751,0.00011,2]
[333473443,1722168639679,-1458.91842534,0.00011,2]
[333473444,1722168639785,-602.43099611,0.00011,2]
[333473445,1722168639798,-4125.98200796,0.00011,2]
[333473446,1722168640099,-391.951146,0.00011,2]
[333473449,1722168642593,-342.66322499,0.00011,2]
[333473450,1722168642644,-120594.80186529,0.00011,2]
[333473451,1722168642656,-902165.75120909,0.00011,2]
[333473452,1722168642668,-3000.00002,0.00011,2]
[333473453,1722168642681,-8823.99346952,0.00011,2]
[333473454,1722168642699,-6182.23250689,0.00011,2]
[333473455,1722168642711,-1962.80561149,0.00011,2]
[333473456,1722168642724,-17286.04645497,0.00011,2]
[333473457,1722168642736,-20156.06310558,0.00011,2]
[333473458,1722168642747,-2248.95674392,0.00011,2]
[333473459,1722168642760,-1719539.21208438,0.00011,2]
[333473460,1722168642771,-1377.53454,0.00011,2]
[333473461,1722168642808,-661.66608519,0.00011,2]
[333473462,1722168642861,-1625.64402695,0.00011,2]
[333473486,1722168645569,-3929.113636,0.00011,2]
[333473492,1722168645623,-675.544915,0.00011,2]
[333473494,1722168645635,-690.90239874,0.00011,2]
[333473504,1722168645729,-313.354957,0.00011,2]
[333473509,1722168645783,-337.66996,0.00011,2]
[333473511,1722168645795,-782.42653634,0.00011,2]
[333473522,1722168645890,-530.6,0.00011,2]
[333473615,1722168878268,150.0,0.000191,120]
[333473620,1722169341860,-344.76,8.219e-05,2]
[333473621,1722169341890,-300.0,9.434e-05,2]
[333473622,1722169341919,-23900.0,9.435e-05,2]
[333473623,1722169341946,-250.0,9.458e-05,2]
[333473624,1722169341974,-430.4,9.566e-05,2]
[333473625,1722169342002,-3250.0371,9.815e-05,2]
[333473626,1722169342030,-150.81,9.915e-05,2]
[333473627,1722169342058,-150.81,9.918e-05,2]
[333473628,1722169342088,-150.81,9.922e-05,2]
[333473629,1722169342116,-150.81,9.925e-05,2]
[333473630,1722169342147,-696.35,9.925e-05,2]
[333473631,1722169342175,-150.81,9.928e-05,2]
[333473632,1722169342203,-150.81,9.932e-05,2]
[333473633,1722169342231,-150.81,9.935e-05,2]
[333473634,1722169342260,-150.81,9.938e-05,2]
[333473635,1722169342288,-150.81,9.942e-05,2]
[333473636,1722169342315,-150.81,9.945e-05,2]
[333473637,1722169342342,-150.81,9.948e-05,2]
[333473638,1722169342374,-150.81,9.952e-05,2]
[333473639,1722169342401,-150.81,9.955e-05,2]
[333473640,1722169342428,-150.81,9.958e-05,2]
[333473641,1722169342455,-150.81,9.961e-05,2]
[333473642,1722169342483,-150.81,9.965e-05,2]
[333473643,1722169342509,-3527.68,0.00010041,2]
[333473644,1722169342535,-420.0,0.00010378,2]
[333473645,1722169342562,-344.76,0.00010444,2]
[333473646,1722169342589,-1180.3928,0.0001065,2]
[333473647,1722169342615,-2540.36423253,0.0001074,2]
[333473648,1722169342643,-150.0,0.00010749,2]
[333473649,1722169342668,-6587.2491,0.00010749,2]
[333473650,1722169342695,-10894.68293494,0.0001075,2]
[333473651,1722169349111,1672.0,0.0002,90]
[333473693,1722169831771,-2866.52896504,6.94e-05,2]
[333473694,1722169831781,-298.22103563,8.219e-05,2]
[333473695,1722169831793,-12.05896437,8.219e-05,2]
[333473696,1722169831802,-335.90918638,9e-05,2]
[333473697,1722169831830,-205.27243935,9e-05,2]
[333473698,1722169831839,-569.6,9.412e-05,2]
[333473699,1722169831849,-1461.14,9.857e-05,2]
[333473700,1722169831859,-1250.0,0.0001,2]
[333473701,1722169831868,-310.28,0.00010468,2]
[333473702,1722169831878,-569.6,0.00010589,2]
[333473703,1722169831887,-13740.72766506,0.0001075,2]
[333473704,1722169831896,-22751.5382,0.0001075,2]
[333473705,1722169831905,-1000.0,0.0001075,2]
[333473706,1722169831915,-35344.26,0.0001075,2]
[333473707,1722169831924,-4764.8295,0.0001075,2]
[333473708,1722169831934,-617.9493,0.0001075,2]
[333473709,1722169831943,-18562.71,0.00010751,2]
[333473710,1722169831953,-1275.32,0.00010751,2]
[333473711,1722169831962,-464.3666052,0.00010751,2]
[333473712,1722169831972,-499.99,0.00010762,2]
[333473713,1722169831982,-430.4,0.00010762,2]
[333473714,1722169831992,-464.36660518,0.00010788,2]
[333473715,1722169832002,-165.76127034,0.000108,2]
[333473716,1722169832012,-254.84919617,0.000108,2]
[333473717,1722169832021,-464.36660518,0.00010825,2]
[333473718,1722169832031,-276.99977,0.00010847,2]
[333473719,1722169832040,-258.85024919,0.00010847,2]
[333473720,1722169832049,-1359.1965407,0.00010848,2]
[333473721,1722169832058,-50695.78347854,0.00010849,2]
[333473722,1722169832067,-235309.02353,0.00010851,2]
[333473723,1722169832078,-50695.78347854,0.00010851,2]
[333473724,1722169832088,-289.2514114,0.00010851,2]
[333473725,1722169832098,-258.85024919,0.00010852,2]
[333473726,1722169832107,-1359.1965407,0.00010855,2]
[333473727,1722169832117,-849.72545014,0.00010855,2]
[333473728,1722169832126,-289.2514114,0.00010855,2]
[333473729,1722169832136,-213673.19295321,0.00010856,2]
[333473730,1722169832149,-404.4999995,0.00010856,2]
[333473731,1722169832160,-3132.3393828,0.00010856,2]
[333473732,1722169832171,-704.92261432,0.00010856,2]
[333473733,1722169832183,-2332.32978955,0.00010856,2]
[333473735,1722169832194,-713.07366266,0.00010856,2]
[333473736,1722169832206,-893.59727248,0.00010856,2]
[333473738,1722169832221,-2744.26708576,0.00010856,2]
[333473740,1722169832232,-385.42167653,0.00010856,2]
[333473741,1722169832245,-919.70999,0.00010856,2]
[333473742,1722169832256,-9405.66910319,0.00010856,2]
[333473743,1722169832266,-2369.22001438,0.00010856,2]
[333473744,1722169832278,-6549.82098761,0.00010856,2]
[333473745,1722169832292,-317.98711281,0.00010856,2]
[333473746,1722169832301,-3715.94896516,0.00010857,2]
[333473747,1722169832313,-19058.80615771,0.00010857,2]
[333473748,1722169832330,-1521.76221221,0.00010857,2]
[333473749,1722169832342,-2913.56941785,0.00010857,2]
[333473750,1722169832353,-1735.5084682,0.00010857,2]
[333473751,1722169832364,-500.0,0.00010857,2]
[333473752,1722169832377,-250.0,0.00010857,2]
[333473753,1722169832394,-26376.81846533,0.00010857,2]
[333473754,1722169832406,-60615.92196757,0.00010857,2]
[333473755,1722169832417,-432.92,0.00010857,2]
[333473767,1722169837804,-118187.76787597,0.00010857,2]
[333473768,1722169837816,-317.98711281,0.00010859,2]
[333473769,1722169837828,-464.36660518,0.00010862,2]
[333473770,1722169837841,-50695.78347854,0.00010863,2]
[333473771,1722169837854,-8919.04100199,0.00010863,2]
[333473772,1722169837868,-289.2514114,0.00010863,2]
[333473773,1722169837879,-317.98711281,0.00010868,2]
[333473774,1722169837892,-8919.04100199,0.0001087,2]
[333473775,1722169837904,-25684.2702943,0.0001088,2]
[333473776,1722169837916,-276.99977,0.00010881,2]
[333473777,1722169837932,-1359.1965407,0.00010881,2]
[333473778,1722169837945,-258.85024919,0.00010887,2]
[333473779,1722169837956,-276.99977,0.00010889,2]
[333473780,1722169837968,-464.36660518,0.00010899,2]
[333473781,1722169837980,-464.0653,0.000109,2]
[333473782,1722169837992,-500.0,0.000109,2]
[333473783,1722169838003,-4534.84459588,0.000109,2]
[333473784,1722169838014,-2534.8815,0.000109,2]
[333473785,1722169838025,-7762.3759,0.000109,2]
[333473787,1722169838037,-2429.0462,0.000109,2]
[333473789,1722169838048,-12011.61,0.000109,2]
[333473791,1722169838059,-1862.4103357,0.000109,2]
[333473793,1722169838070,-1862.4103357,0.000109,2]
[333473795,1722169838081,-1862.4103357,0.000109,2]
[333473797,1722169838092,-1862.4103357,0.000109,2]
[333473799,1722169838103,-1862.4103357,0.000109,2]
[333473801,1722169838115,-1862.4103357,0.000109,2]
[333473803,1722169838127,-1862.4103357,0.000109,2]
[333473805,1722169838139,-485.40005773,0.000109,2]
[333473808,1722169838151,-500.0,0.00010911,2]
[333473811,1722169838162,-500.0,0.00010912,2]
[333473813,1722169838173,-4230.89105533,0.00010956,2]
[333473815,1722169838182,-514.37864434,0.00010958,2]
[333473817,1722169838192,-310.83778445,0.00010958,2]
[333473819,1722169838202,-500.0,0.00010958,2]
[333473821,1722169838212,-500.0,0.00010958,2]
[333473823,1722169838223,-500.0,0.00010958,2]
[333473825,1722169838235,-491.54909953,0.00010958,2]
[333473827,1722169838247,-500.0,0.00010958,2]
[333473830,1722169838258,-500.0,0.00010958,2]
[333473832,1722169838269,-548.42,0.00010958,2]
[333473834,1722169838280,-520.35245855,0.00010958,2]
[333473836,1722169838294,-273.92860276,0.00010958,2]
[333473838,1722169838307,-500.0,0.00010958,2]